[Event "36th European Club Cup 2021"]
[Site "Struga"]
[Date "2021.09.20"]
[Round "3.38"]
[White "Cvitan, Ognjen"]
[Black "Miladinovic, Igor"]
[Result "1/2-1/2"]
[ECO "D36"]
[WhiteElo "2470"]
[BlackElo "2536"]
[Annotator "ChessBase"]
[PlyCount "64"]
[EventDate "2021.09.18"]
[EventType "team-tourn"]
[EventCountry "MKD"]
[SourceTitle "playchess.com"]
[Source "ChessBase"]
[SourceQuality "1"]
[TimeControl "40/5400+30:1800+30"]

1. d4 {[%emt 0:00:44]} d5 {[%emt 0:00:09]} 2. c4 {[%emt 0:00:26]} e6 {[%emt 0:
00:11]} 3. Nc3 {[%emt 0:02:55]} Nf6 {[%emt 0:01:30]} 4. cxd5 {[%emt 0:05:00]}
exd5 {[%emt 0:03:17]} 5. Bg5 {[%emt 0:00:14]} c6 {[%emt 0:00:10]} 6. Qc2 {
[%emt 0:00:32]} Be7 {[%emt 0:00:10]} 7. e3 {[%emt 0:00:25]} Nbd7 {[%emt 0:00:
24]} 8. Bd3 {[%emt 0:01:26]} O-O {[%emt 0:03:11]} 9. Nge2 {[%emt 0:06:42]} Re8
{[%emt 0:00:30]} 10. O-O {[%emt 0:00:14]} Nf8 {[%emt 0:00:03]} 11. f3 {[%emt 0:
00:37]} Ng6 {[%emt 0:03:50]} 12. Rad1 {[%emt 0:02:43]} Qd7 {[%emt 0:23:57]} 13.
Qb3 {[%emt 0:20:07]} Nh5 {[%emt 0:14:54]} 14. Bxe7 {[%emt 0:00:45]} Qxe7 {
[%emt 0:00:10]} 15. e4 {[%emt 0:00:25]} Qg5 {[%emt 0:04:51]} 16. Qc2 {[%emt 0:
02:29]} Nhf4 {[%emt 0:05:59]} 17. Nxf4 {[%emt 0:00:38]} Nxf4 {[%emt 0:00:11]}
18. Qd2 {[%emt 0:53:08]} Nh3+ {[%emt 0:11:19]} 19. Kh1 {[%emt 0:00:00]} Qxd2 {
[%emt 0:00:01]} 20. Rxd2 {[%emt 0:00:00]} Nf4 {[%emt 0:00:03]} 21. Bc2 {
[%emt 0:00:00]} dxe4 {[%emt 0:02:45]} 22. fxe4 {[%emt 0:00:00]} Ng6 {[%emt 0:
00:33]} 23. Bb3 {[%emt 0:00:00]} Rf8 {[%emt 0:02:10]} 24. Rdf2 {[%emt 0:00:00]}
Be6 {[%emt 0:00:47]} 25. d5 {[%emt 0:00:00]} cxd5 {[%emt 0:00:10]} 26. exd5 {
[%emt 0:00:00]} Bd7 {[%emt 0:00:20]} 27. d6 {[%emt 0:00:00]} Be6 {[%emt 0:04:
17]} 28. Bxe6 {[%emt 0:00:00]} fxe6 {[%emt 0:00:04]} 29. Kg1 {[%emt 0:00:00]}
Rad8 {[%emt 0:02:06]} 30. Ne4 {[%emt 0:00:00]} Rxf2 {[%emt 0:00:15]} 31. Rxf2 {
[%emt 0:00:00]} Ne5 {[%emt 0:00:02]} 32. Rc2 {[%emt 0:00:00]} Nf7 {[%emt 0:00:
36]} 1/2-1/2

[Event "36th European Club Cup 2021"]
[Site "Struga"]
[Date "2021.09.20"]
[Round "3.39"]
[White "Perunovic, Milos"]
[Black "Breder, Dennis"]
[Result "1-0"]
[ECO "B62"]
[WhiteElo "2566"]
[BlackElo "2463"]
[Annotator "ChessBase"]
[PlyCount "115"]
[EventDate "2021.09.18"]
[EventType "team-tourn"]
[EventCountry "MKD"]
[SourceTitle "playchess.com"]
[Source "ChessBase"]
[SourceQuality "1"]
[TimeControl "40/5400+30:1800+30"]

1. e4 {[%emt 0:00:08]} c5 {[%emt 0:00:28]} 2. Nf3 {[%emt 0:00:44]} Nc6 {
[%emt 0:00:04]} 3. d4 {[%emt 0:00:25]} cxd4 {[%emt 0:00:04]} 4. Nxd4 {[%emt 0:
00:08]} Nf6 {[%emt 0:00:21]} 5. Nc3 {[%emt 0:00:15]} d6 {[%emt 0:00:04]} 6. Bg5
{[%emt 0:01:41]} e6 {[%emt 0:00:24]} 7. Bb5 {[%emt 0:00:39]} Bd7 {[%emt 0:00:
06]} 8. Qd3 {[%emt 0:00:07]} h6 {[%emt 0:00:05]} 9. Bh4 {[%emt 0:00:07]} g5 {
[%emt 0:00:05]} 10. Bxc6 {[%emt 0:00:21]} bxc6 {[%emt 0:00:04]} 11. Bg3 {
[%emt 0:00:08]} Nh5 {[%emt 0:00:12]} 12. O-O-O {[%emt 0:00:16]} Rg8 {[%emt 0:
00:45]} 13. Nb3 {[%emt 0:14:54]} e5 {[%emt 0:00:37]} 14. Nd2 {[%emt 0:04:30]}
Qc7 {[%emt 0:13:19]} 15. Nc4 {[%emt 0:00:58]} Rg6 {[%emt 0:00:04]} 16. Rd2 {
[%emt 0:12:36]} Rd8 {[%emt 1:21:48]} 17. Rhd1 {[%emt 0:01:57]} Be7 {[%emt 0:00:
00]} 18. Ne3 {[%emt 0:12:32]} g4 {[%emt 0:00:00]} 19. Qc4 {[%emt 0:11:36]} Qb6
{[%emt 0:00:00]} 20. Kb1 {[%emt 0:02:33]} Be6 {[%emt 0:00:00]} 21. Qa4 {
[%emt 0:05:41]} Rb8 {[%emt 0:00:00]} 22. b3 {[%emt 0:00:16]} Qc5 {[%emt 0:00:
00]} 23. Ncd5 {[%emt 0:05:12]} Bd8 {[%emt 0:00:00]} 24. Nc4 {[%emt 0:03:39]}
Kf8 {[%emt 0:00:00]} 25. Nxe5 {[%emt 0:10:16]} dxe5 {[%emt 0:02:18]} 26. Bxe5 {
[%emt 0:00:06]} cxd5 {[%emt 0:00:18]} 27. Bxb8 {[%emt 0:00:57]} Nf6 {[%emt 0:
01:56]} 28. Bxa7 {[%emt 0:00:32]} Qa5 {[%emt 0:00:35]} 29. exd5 {[%emt 0:03:18]
} Qxa4 {[%emt 0:00:01]} 30. bxa4 {[%emt 0:00:07]} Bf5 {[%emt 0:00:22]} 31. Rd4
{[%emt 0:01:53]} Ne4 {[%emt 0:01:20]} 32. Re1 {[%emt 0:00:08]} Bb6 {[%emt 0:00:
36]} 33. Bxb6 {[%emt 0:00:19]} Rxb6+ {[%emt 0:00:01]} 34. Kc1 {[%emt 0:00:24]}
Nd6 {[%emt 0:00:37]} 35. Re3 {[%emt 0:00:50]} Rb8 {[%emt 0:00:28]} 36. Rc3 {
[%emt 0:01:28]} Bd7 {[%emt 0:00:52]} 37. a3 {[%emt 0:01:11]} Ra8 {[%emt 0:00:
34]} 38. Rb4 {[%emt 0:02:57]} Ke7 {[%emt 0:00:27]} 39. Rc5 {[%emt 0:02:24]} f5
{[%emt 0:00:15]} 40. f3 {[%emt 0:00:00]} h5 {[%emt 0:00:00]} 41. a5 {[%emt 0:
00:48]} h4 {[%emt 0:06:24]} 42. h3 {[%emt 0:04:36]} Ne8 {[%emt 0:14:07]} 43.
Rb6 {[%emt 0:06:42]} Nf6 {[%emt 0:01:34]} 44. hxg4 {[%emt 0:02:33]} fxg4 {
[%emt 0:00:16]} 45. fxg4 {[%emt 0:00:21]} Ne4 {[%emt 0:01:37]} 46. Rc7 {
[%emt 0:04:02]} Rxa5 {[%emt 0:08:43]} 47. Re6+ {[%emt 0:00:10]} Kd8 {[%emt 0:
00:05]} 48. Rxd7+ {[%emt 0:00:05]} Kxd7 {[%emt 0:00:03]} 49. Rxe4 {[%emt 0:00:
08]} Rxd5 {[%emt 0:00:14]} 50. c3 {[%emt 0:01:35]} Kc6 {[%emt 0:00:29]} 51.
Rc4+ {[%emt 0:00:41]} Kb5 {[%emt 0:00:35]} 52. Rd4 {[%emt 0:00:24]} Re5 {
[%emt 0:01:00]} 53. Kd2 {[%emt 0:00:08]} Kc5 {[%emt 0:01:18]} 54. a4 {[%emt 0:
00:36]} Re6 {[%emt 0:00:56]} 55. g5 {[%emt 0:01:22]} Rg6 {[%emt 0:00:16]} 56.
Rg4 {[%emt 0:00:11]} Kd5 {[%emt 0:00:05]} 57. Rxh4 {[%emt 0:00:38]} Rxg5 {
[%emt 0:00:01]} 58. Rd4+ {[%emt 0:16:17]} 1-0

[Event "36th European Club Cup 2021"]
[Site "Struga"]
[Date "2021.09.20"]
[Round "3.40"]
[White "Brunner, Nicolas"]
[Black "Miljkovic, Miroslav D"]
[Result "0-1"]
[ECO "D37"]
[WhiteElo "2425"]
[BlackElo "2470"]
[Annotator "ChessBase"]
[PlyCount "76"]
[EventDate "2021.09.18"]
[EventType "team-tourn"]
[EventCountry "MKD"]
[SourceTitle "playchess.com"]
[Source "ChessBase"]
[SourceQuality "1"]
[TimeControl "40/5400+30:1800+30"]

1. d4 {[%emt 0:00:03]} d5 {[%emt 0:00:09]} 2. c4 {[%emt 0:00:07]} e6 {[%emt 0:
00:15]} 3. Nf3 {[%emt 0:00:28]} a6 {[%emt 0:00:15]} 4. cxd5 {[%emt 0:00:17]}
exd5 {[%emt 0:00:07]} 5. Nc3 {[%emt 0:00:05]} Nf6 {[%emt 0:00:20]} 6. Bg5 {
[%emt 0:00:23]} Be6 {[%emt 0:01:39]} 7. e3 {[%emt 0:00:54]} Nbd7 {[%emt 0:01:
30]} 8. Bd3 {[%emt 0:01:37]} Bd6 {[%emt 0:03:23]} 9. Bf4 {[%emt 0:03:37]} Qe7 {
[%emt 0:05:53]} 10. O-O {[%emt 0:01:40]} O-O {[%emt 0:05:21]} 11. h3 {[%emt 0:
05:09]} c6 {[%emt 0:04:03]} 12. Ne5 {[%emt 0:06:16]} Rfd8 {[%emt 0:10:46]} 13.
Bh2 {[%emt 0:06:41]} Nf8 {[%emt 0:09:15]} 14. f4 {[%emt 0:12:54]} Bc8 {[%emt 0:
00:23]} 15. Qf3 {[%emt 0:04:37]} Ne8 {[%emt 0:02:15]} 16. Qf2 {[%emt 0:09:26]}
f6 {[%emt 0:00:47]} 17. Nf3 {[%emt 0:00:09]} Bb4 {[%emt 0:01:00]} 18. f5 {
[%emt 0:05:44]} Nd6 {[%emt 0:05:33]} 19. Nd2 {[%emt 0:02:05]} b5 {[%emt 0:04:
09]} 20. a3 {[%emt 0:06:12]} Ba5 {[%emt 0:01:37]} 21. b4 {[%emt 0:00:42]} Bb6 {
[%emt 0:02:33]} 22. Nb3 {[%emt 0:05:54]} Nxf5 {[%emt 0:08:59]} 23. Bxf5 {
[%emt 0:00:28]} Bxf5 {[%emt 0:00:07]} 24. Qxf5 {[%emt 0:00:43]} Qxe3+ {[%emt 0:
00:09]} 25. Kh1 {[%emt 0:00:46]} Qxc3 {[%emt 0:00:07]} 26. Rf3 {[%emt 0:00:30]}
Qb2 {[%emt 0:00:59]} 27. Rc1 {[%emt 0:10:20]} Rac8 {[%emt 0:03:16]} 28. Rfc3 {
[%emt 0:04:45]} Qe2 {[%emt 0:06:44]} 29. Bg1 {[%emt 0:00:49]} Qe8 {[%emt 0:00:
53]} 30. Re3 {[%emt 0:04:42]} Qd7 {[%emt 0:00:12]} 31. Qc2 {[%emt 0:00:18]} Re8
{[%emt 0:00:45]} 32. Rc3 {[%emt 0:00:04]} Re6 {[%emt 0:00:33]} 33. Bh2 {
[%emt 0:00:58]} Ng6 {[%emt 0:02:43]} 34. Bg3 {[%emt 0:00:48]} Ne7 {[%emt 0:01:
15]} 35. Bh2 {[%emt 0:00:15]} Re4 {[%emt 0:01:22]} 36. Bg1 {[%emt 0:01:21]} Qe6
{[%emt 0:02:06]} 37. Qf2 {[%emt 0:02:27]} Nf5 {[%emt 0:03:06]} 38. Qc2 {
[%emt 0:00:54]} Nxd4 {[%emt 0:02:37]} 0-1

[Event "36th European Club Cup 2021"]
[Site "Struga"]
[Date "2021.09.20"]
[Round "3.41"]
[White "Kosanovic, Goran A"]
[Black "Haag, Gregor"]
[Result "1/2-1/2"]
[ECO "D05"]
[WhiteElo "2311"]
[BlackElo "2370"]
[Annotator "NA"]
[PlyCount "97"]
[EventDate "2021.09.18"]
[EventType "team-tourn"]
[EventCountry "MKD"]
[SourceTitle "playchess.com"]
[Source "ChessBase"]
[SourceQuality "1"]
[TimeControl "40/5400+30:1800+30"]

1. d4 {[%emt 0:00:04]} d5 {[%emt 0:00:11]} 2. Nf3 {[%emt 0:00:39]} Nf6 {
[%emt 0:00:16]} 3. e3 {[%emt 0:00:46]} e6 {[%emt 0:00:21]} 4. Bd3 {[%emt 0:00:
38]} c5 {[%emt 0:00:21]} 5. c3 {[%emt 0:01:10]} Nc6 {[%emt 0:00:45]} 6. Nbd2 {
[%emt 0:00:27]} Bd6 {[%emt 0:05:08]} 7. O-O {[%emt 0:00:20]} O-O {[%emt 0:00:
51]} 8. dxc5 {[%emt 0:02:15]} Bxc5 {[%emt 0:00:24]} 9. e4 {[%emt 0:00:13]} Qc7
{[%emt 0:02:56]} 10. Qe2 {[%emt 0:05:52]} b6 {[%emt 0:08:08]} 11. e5 {[%emt 0:
18:52]} Ng4 {[%emt 0:03:37]} 12. Bxh7+ {[%emt 0:05:08]} Kxh7 {[%emt 0:01:07]}
13. Ng5+ {[%emt 0:00:07]} Kg8 {[%emt 0:00:56]} 14. Qxg4 {[%emt 0:00:08]} Qxe5 {
[%emt 0:00:38]} 15. Nb3 {[%emt 0:09:59]} Bd6 {[%emt 0:39:41]} 16. Qh3 {[%emt 0:
04:56]} Qf5 {[%emt 0:15:44]} 17. Qxf5 {[%emt 0:03:25]} exf5 {[%emt 0:00:02]}
18. Nh3 {[%emt 0:03:23]} Ba6 {[%emt 0:05:24]} 19. Rd1 {[%emt 0:00:58]} Rad8 {
[%emt 0:03:37]} 20. Bf4 {[%emt 0:00:37]} Be7 {[%emt 0:02:35]} 21. Be3 {[%emt 0:
02:50]} Rfe8 {[%emt 0:05:39]} 22. Nf4 {[%emt 0:01:36]} Bc4 {[%emt 0:01:30]} 23.
Nd4 {[%emt 0:05:55]} Nxd4 {[%emt 0:00:49]} 24. Bxd4 {[%emt 0:02:12]} Bd6 {
[%emt 0:00:33]} 25. Be3 {[%emt 0:01:34]} Bxf4 {[%emt 0:01:01]} 26. Bxf4 {
[%emt 0:00:06]} Re2 {[%emt 0:00:03]} 27. b3 {[%emt 0:01:43]} Ba6 {[%emt 0:00:
36]} 28. Be3 {[%emt 0:02:36]} Bb7 {[%emt 0:01:01]} 29. a4 {[%emt 0:00:46]} Rc8
{[%emt 0:00:27]} 30. Bd4 {[%emt 0:00:15]} Rb2 {[%emt 0:00:24]} 31. b4 {[%emt 0:
00:23]} Rc2 {[%emt 0:00:40]} 32. Re1 {[%emt 0:00:22]} Kf8 {[%emt 0:00:23]} 33.
Re5 {[%emt 0:01:56]} g6 {[%emt 0:00:35]} 34. Re3 {[%emt 0:01:33]} Bc6 {[%emt 0:
00:28]} 35. f4 {[%emt 0:06:26]} Re8 {[%emt 0:00:22]} 36. Rxe8+ {[%emt 0:01:10]}
Kxe8 {[%emt 0:00:31]} 37. a5 {[%emt 0:00:07]} Bb5 {[%emt 0:00:36]} 38. axb6 {
[%emt 0:01:24]} axb6 {[%emt 0:00:01]} 39. Ra8+ {[%emt 0:00:40]} Ke7 {[%emt 0:
00:52]} 40. Rb8 {[%emt 0:00:00]} Bd3 {[%emt 0:00:00]} 41. Rb7+ {[%emt 0:02:22]}
Ke8 {[%emt 0:18:41]} 42. Rxb6 {[%emt 0:01:44]} g5 {[%emt 0:07:18]} 43. g3 {
[%emt 0:07:21]} g4 {[%emt 0:00:17]} 44. Rb7 {[%emt 0:01:28]} Re2 {[%emt 0:00:
58]} 45. b5 {[%emt 0:05:13]} Re1+ {[%emt 0:00:49]} 46. Kf2 {[%emt 0:03:56]}
Re2+ {[%emt 0:00:06]} 47. Kg1 {[%emt 0:01:06]} Re1+ {[%emt 0:00:05]} 48. Kf2 {
[%emt 0:01:23]} Re2+ {[%emt 0:00:06]} 49. Kg1 {[%emt 0:26:56]} 1/2-1/2

[Event "36th European Club Cup 2021"]
[Site "Struga"]
[Date "2021.09.20"]
[Round "3.42"]
[White "Heinz, Timothee"]
[Black "Stankovic, Milos"]
[Result "0-1"]
[ECO "D55"]
[WhiteElo "2394"]
[BlackElo "2409"]
[Annotator "NA"]
[PlyCount "74"]
[EventDate "2021.09.18"]
[EventType "team-tourn"]
[EventCountry "MKD"]
[SourceTitle "playchess.com"]
[Source "ChessBase"]
[SourceQuality "1"]
[TimeControl "40/5400+30:1800+30"]

1. Nf3 {[%emt 0:00:04]} d5 {[%emt 0:01:10]} 2. d4 {[%emt 0:00:05]} Nf6 {
[%emt 0:00:27]} 3. c4 {[%emt 0:00:08]} e6 {[%emt 0:00:32]} 4. Nc3 {[%emt 0:00:
13]} Be7 {[%emt 0:00:31]} 5. Bg5 {[%emt 0:00:11]} O-O {[%emt 0:00:28]} 6. e3 {
[%emt 0:00:05]} b6 {[%emt 0:01:31]} 7. cxd5 {[%emt 0:00:19]} Nxd5 {[%emt 0:00:
29]} 8. Bxe7 {[%emt 0:00:06]} Qxe7 {[%emt 0:00:28]} 9. Nxd5 {[%emt 0:00:17]}
exd5 {[%emt 0:00:30]} 10. Rc1 {[%emt 0:00:09]} Be6 {[%emt 0:05:12]} 11. Bd3 {
[%emt 0:00:37]} Rc8 {[%emt 0:04:18]} 12. O-O {[%emt 0:00:28]} c5 {[%emt 0:00:
17]} 13. e4 {[%emt 0:00:32]} Nd7 {[%emt 0:14:26]} 14. dxc5 {[%emt 0:02:19]}
Rxc5 {[%emt 0:03:03]} 15. Rxc5 {[%emt 0:00:19]} Qxc5 {[%emt 0:00:35]} 16. Ng5 {
[%emt 0:00:22]} h6 {[%emt 0:04:46]} 17. Nxe6 {[%emt 0:00:58]} fxe6 {[%emt 0:03:
56]} 18. exd5 {[%emt 0:03:42]} exd5 {[%emt 0:01:50]} 19. Qg4 {[%emt 0:13:19]}
Nf6 {[%emt 0:03:16]} 20. Qe6+ {[%emt 0:05:15]} Kh8 {[%emt 0:00:50]} 21. Re1 {
[%emt 0:04:38]} Qd4 {[%emt 0:08:38]} 22. Qf5 {[%emt 0:19:34]} Qxb2 {[%emt 0:07:
09]} 23. h3 {[%emt 0:08:03]} Qa3 {[%emt 0:05:00]} 24. Re6 {[%emt 0:07:37]} Rf8
{[%emt 0:01:30]} 25. Kh2 {[%emt 0:05:33]} Qc5 {[%emt 0:05:26]} 26. Qg6 {
[%emt 0:02:01]} Kg8 {[%emt 0:00:54]} 27. Qg3 {[%emt 0:03:25]} Ne4 {[%emt 0:08:
25]} 28. Bxe4 {[%emt 0:02:32]} dxe4 {[%emt 0:00:07]} 29. Rxe4 {[%emt 0:01:29]}
Qxf2 {[%emt 0:00:36]} 30. Re7 {[%emt 0:01:15]} Qxg3+ {[%emt 0:00:13]} 31. Kxg3
{[%emt 0:00:06]} Rf7 {[%emt 0:00:07]} 32. Re8+ {[%emt 0:00:04]} Rf8 {[%emt 0:
00:14]} 33. Re7 {[%emt 0:00:03]} Rf7 {[%emt 0:00:20]} 34. Re8+ {[%emt 0:00:03]}
Kh7 {[%emt 0:00:07]} 35. Ra8 {[%emt 0:00:28]} Kg6 {[%emt 0:00:14]} 36. Kg4 {
[%emt 0:01:33]} Rc7 {[%emt 0:01:12]} 37. Kf4 {[%emt 0:05:02]} Rc4+ {[%emt 0:00:
31]} 0-1

[Event "36th European Club Cup 2021"]
[Site "Struga"]
[Date "2021.09.20"]
[Round "3.46"]
[White "Lobersli, Henrik Oie"]
[Black "Lomasov, Semyon"]
[Result "0-1"]
[ECO "C11"]
[WhiteElo "1987"]
[BlackElo "2526"]
[Annotator "ChessBase"]
[PlyCount "68"]
[EventDate "2021.09.18"]
[EventType "team-tourn"]
[EventCountry "MKD"]
[SourceTitle "playchess.com"]
[Source "ChessBase"]
[SourceQuality "1"]
[TimeControl "40/5400+30:1800+30"]

1. e4 {[%emt 0:00:05]} e6 {[%emt 0:00:04]} 2. d4 {[%emt 0:00:08]} d5 {[%emt 0:
00:10]} 3. Nc3 {[%emt 0:00:13]} Nf6 {[%emt 0:00:05]} 4. e5 {[%emt 0:00:12]}
Nfd7 {[%emt 0:00:06]} 5. f4 {[%emt 0:00:13]} c5 {[%emt 0:00:04]} 6. Nf3 {
[%emt 0:00:11]} a6 {[%emt 0:00:04]} 7. Be3 {[%emt 0:03:45]} Qb6 {[%emt 0:02:06]
} 8. a3 {[%emt 0:09:20]} Nc6 {[%emt 0:01:06]} 9. Na4 {[%emt 0:07:24]} Qa5+ {
[%emt 0:08:26]} 10. c3 {[%emt 0:02:45]} c4 {[%emt 0:03:52]} 11. b4 {[%emt 0:02:
15]} cxb3 {[%emt 0:01:01]} 12. Qxb3 {[%emt 0:00:16]} b5 {[%emt 0:00:32]} 13.
Nb2 {[%emt 0:23:26]} Rb8 {[%emt 0:21:18]} 14. Kf2 {[%emt 0:09:17]} Nb6 {
[%emt 0:05:39]} 15. Be2 {[%emt 0:12:14]} Nc4 {[%emt 0:01:11]} 16. a4 {[%emt 0:
04:48]} Nxe3 {[%emt 0:14:22]} 17. axb5 {[%emt 0:01:41]} Ng4+ {[%emt 0:01:51]}
18. Kg3 {[%emt 0:00:13]} Qc7 {[%emt 0:01:17]} 19. Kxg4 {[%emt 0:00:21]} Be7 {
[%emt 0:02:55]} 20. Kg3 {[%emt 0:00:28]} O-O {[%emt 0:02:15]} 21. h3 {[%emt 0:
01:56]} axb5 {[%emt 0:01:28]} 22. Kh2 {[%emt 0:01:20]} f6 {[%emt 0:10:18]} 23.
Rhb1 {[%emt 0:03:59]} fxe5 {[%emt 0:01:38]} 24. fxe5 {[%emt 0:00:17]} Bd7 {
[%emt 0:00:03]} 25. Nd3 {[%emt 0:01:52]} Be8 {[%emt 0:00:20]} 26. Qa2 {[%emt 0:
02:21]} Bg6 {[%emt 0:02:31]} 27. Rc1 {[%emt 0:05:04]} Be4 {[%emt 0:06:15]} 28.
Nb4 {[%emt 0:01:12]} Nxe5 {[%emt 0:09:48]} 29. dxe5 {[%emt 0:04:28]} Bxf3 {
[%emt 0:00:02]} 30. gxf3 {[%emt 0:02:20]} Qxe5+ {[%emt 0:00:02]} 31. Kh1 {
[%emt 0:00:29]} Bd6 {[%emt 0:01:01]} 32. Bd1 {[%emt 0:01:03]} Qe1+ {[%emt 0:01:
11]} 33. Kg2 {[%emt 0:00:16]} Rf6 {[%emt 0:00:49]} 34. Bb3 {[%emt 0:00:55]}
Rg6# {[%emt 0:00:07]} 0-1

[Event "36th European Club Cup 2021"]
[Site "Struga"]
[Date "2021.09.20"]
[Round "3.47"]
[White "Arngrimsson, Dagur"]
[Black "Darnell, Anton"]
[Result "1-0"]
[ECO "D10"]
[WhiteElo "2383"]
[BlackElo "2006"]
[Annotator "NA"]
[PlyCount "65"]
[EventDate "2021.09.18"]
[EventType "team-tourn"]
[EventCountry "MKD"]
[SourceTitle "playchess.com"]
[Source "ChessBase"]
[SourceQuality "1"]
[TimeControl "40/5400+30:1800+30"]

1. d4 {[%emt 0:00:06]} d5 {[%emt 0:00:12]} 2. c4 {[%emt 0:00:13]} c6 {[%emt 0:
00:09]} 3. cxd5 {[%emt 0:01:37]} cxd5 {[%emt 0:00:18]} 4. Nc3 {[%emt 0:00:04]}
Nf6 {[%emt 0:01:40]} 5. Bf4 {[%emt 0:00:19]} Nc6 {[%emt 0:00:29]} 6. e3 {
[%emt 0:00:43]} a6 {[%emt 0:02:10]} 7. Bd3 {[%emt 0:00:37]} e6 {[%emt 0:02:17]}
8. Rc1 {[%emt 0:01:52]} Bd6 {[%emt 0:00:58]} 9. Bg3 {[%emt 0:03:25]} O-O {
[%emt 0:06:51]} 10. f4 {[%emt 0:05:46]} Ne7 {[%emt 0:03:04]} 11. Bh4 {[%emt 0:
05:00]} Ng6 {[%emt 0:11:45]} 12. Bg5 {[%emt 0:01:39]} Re8 {[%emt 0:09:25]} 13.
h4 {[%emt 0:07:08]} Nf8 {[%emt 0:02:00]} 14. Nf3 {[%emt 0:06:11]} b5 {[%emt 0:
03:49]} 15. Qc2 {[%emt 0:16:34]} Bb7 {[%emt 0:02:43]} 16. a3 {[%emt 0:03:41]}
Rc8 {[%emt 0:02:02]} 17. g4 {[%emt 0:04:57]} Qd7 {[%emt 0:09:16]} 18. Bxf6 {
[%emt 0:08:44]} gxf6 {[%emt 0:00:10]} 19. g5 {[%emt 0:03:01]} f5 {[%emt 0:10:
16]} 20. h5 {[%emt 0:00:50]} Rc7 {[%emt 0:02:31]} 21. Qb3 {[%emt 0:10:13]} Rec8
{[%emt 0:01:04]} 22. Kf2 {[%emt 0:01:46]} Qe7 {[%emt 0:02:16]} 23. Ne5 {
[%emt 0:02:08]} Bxe5 {[%emt 0:05:24]} 24. fxe5 {[%emt 0:00:06]} h6 {[%emt 0:00:
59]} 25. gxh6 {[%emt 0:00:52]} Kh7 {[%emt 0:00:16]} 26. Rcg1 {[%emt 0:00:51]}
Kxh6 {[%emt 0:00:37]} 27. Qd1 {[%emt 0:04:43]} Rxc3 {[%emt 0:09:57]} 28. bxc3 {
[%emt 0:00:21]} Rxc3 {[%emt 0:00:03]} 29. Qf3 {[%emt 0:03:29]} Rxd3 {[%emt 0:
05:42]} 30. Qf4+ {[%emt 0:00:08]} Kh7 {[%emt 0:00:07]} 31. Qg3 {[%emt 0:00:06]}
f6 {[%emt 0:01:56]} 32. Qg8+ {[%emt 0:00:06]} Kh6 {[%emt 0:00:08]} 33. Rg6+ {
[%emt 0:00:06]} 1-0

[Event "36th European Club Cup 2021"]
[Site "Struga"]
[Date "2021.09.20"]
[Round "3.48"]
[White "Hestvik, Elias"]
[Black "Lagerman, Robert"]
[Result "1/2-1/2"]
[ECO "C48"]
[WhiteElo "1860"]
[BlackElo "2300"]
[Annotator "NA"]
[PlyCount "79"]
[EventDate "2021.09.18"]
[EventType "team-tourn"]
[EventCountry "MKD"]
[SourceTitle "playchess.com"]
[Source "ChessBase"]
[SourceQuality "1"]
[TimeControl "40/5400+30:1800+30"]

1. e4 {[%emt 0:00:03]} e5 {[%emt 0:00:02]} 2. Nf3 {[%emt 0:00:18]} Nc6 {
[%emt 0:00:06]} 3. Nc3 {[%emt 0:00:15]} Nf6 {[%emt 0:03:09]} 4. Bb5 {[%emt 0:
01:12]} Nd4 {[%emt 0:00:07]} 5. Nxd4 {[%emt 0:04:14]} exd4 {[%emt 0:00:26]} 6.
e5 {[%emt 0:01:23]} dxc3 {[%emt 0:05:30]} 7. exf6 {[%emt 0:02:42]} Qxf6 {
[%emt 0:04:28]} 8. dxc3 {[%emt 0:00:35]} c6 {[%emt 0:02:30]} 9. Bd3 {[%emt 0:
00:15]} d5 {[%emt 0:00:23]} 10. O-O {[%emt 0:01:21]} Bd6 {[%emt 0:03:45]} 11.
Re1+ {[%emt 0:03:03]} Be6 {[%emt 0:01:40]} 12. Be3 {[%emt 0:11:10]} O-O {
[%emt 0:20:10]} 13. Qh5 {[%emt 0:05:57]} g6 {[%emt 0:05:54]} 14. Qh6 {[%emt 0:
02:08]} Qg7 {[%emt 0:16:18]} 15. Qh4 {[%emt 0:01:15]} Rfe8 {[%emt 0:00:19]} 16.
Bd4 {[%emt 0:02:19]} g5 {[%emt 0:06:44]} 17. Bxg7 {[%emt 0:26:58]} gxh4 {
[%emt 0:00:27]} 18. Be5 {[%emt 0:03:41]} Bf8 {[%emt 0:02:02]} 19. Bf6 {[%emt 0:
02:52]} Be7 {[%emt 0:00:11]} 20. Bxe7 {[%emt 0:07:10]} Rxe7 {[%emt 0:00:02]}
21. Re3 {[%emt 0:03:57]} h6 {[%emt 0:04:15]} 22. f4 {[%emt 0:05:25]} Rae8 {
[%emt 0:01:25]} 23. Rae1 {[%emt 0:00:15]} Kf8 {[%emt 0:00:11]} 24. Kf2 {
[%emt 0:09:58]} Bd7 {[%emt 0:02:18]} 25. Kf3 {[%emt 0:03:09]} c5 {[%emt 0:01:
39]} 26. c4 {[%emt 0:01:02]} dxc4 {[%emt 0:01:32]} 27. Rxe7 {[%emt 0:00:42]}
Rxe7 {[%emt 0:00:02]} 28. Rxe7 {[%emt 0:00:16]} Kxe7 {[%emt 0:00:02]} 29. Bxc4
{[%emt 0:00:09]} f5 {[%emt 0:01:55]} 30. Bd5 {[%emt 0:00:46]} b5 {[%emt 0:00:
30]} 31. c4 {[%emt 0:00:46]} b4 {[%emt 0:00:38]} 32. Ke3 {[%emt 0:00:17]} a5 {
[%emt 0:00:09]} 33. Bg8 {[%emt 0:00:37]} Bc6 {[%emt 0:00:44]} 34. g3 {[%emt 0:
00:39]} hxg3 {[%emt 0:00:28]} 35. hxg3 {[%emt 0:00:01]} Be4 {[%emt 0:01:55]}
36. a3 {[%emt 0:00:55]} Bc6 {[%emt 0:01:34]} 37. Kf2 {[%emt 0:00:30]} Be4 {
[%emt 0:05:32]} 38. Ke3 {[%emt 0:00:19]} Bc6 {[%emt 0:00:06]} 39. Kf2 {[%emt 0:
00:12]} Be4 {[%emt 0:00:04]} 40. Ke3 {[%emt 0:00:00]} 1/2-1/2